bitfinex/quotes_SOLUSD_20250901
["timestamp","ask_amount","ask_price","bid_price","bid_amount"]
[1756703197528,0.06,198.13,198.12,196.1488768]
[1756703197721,0.06,198.13,198.12,193.37775558]
[1756703198620,0.06,198.13,198.12,179.64]
[1756703198821,0.06,198.13,198.12,140.0]
[1756703199022,0.06,198.13,198.12,179.64]
[1756703200622,4.8802328,198.13,198.12,179.64]
[1756703202330,5.10719123,198.13,198.12,179.64]
[1756703203134,9.92742403,198.13,198.12,179.64]
[1756703203446,5.10719123,198.13,198.12,179.64]
[1756703204840,5.10719123,198.13,198.12,140.0]
[1756703205035,9.92742403,198.13,198.11,39.58]
[1756703205228,9.92742403,198.13,198.06,18.55798838]
[1756703205229,4.8202328,198.12,198.07,13.73775558]
[1756703205437,5.10719123,198.13,198.08,39.6]
[1756703205728,4.8202328,198.12,198.08,39.6]
[1756703207061,5.04770077,198.11,198.08,39.6]
[1756703207263,5.04748965,198.12,198.08,39.6]
[1756703208230,5.04748965,198.12,198.08,179.6]
[1756703208661,9.86772245,198.12,198.08,179.6]
[1756703208956,5.04748965,198.12,198.08,179.6]
[1756703210438,4.8202328,198.09,198.08,140.0]
[1756703210762,4.8202328,198.09,198.05,39.56]
[1756703211172,9.86869806,198.08,198.05,39.56]
[1756703211470,4.8202328,198.07,198.05,39.56]
[1756703212058,4.8202328,198.07,198.04,39.58]
[1756703213476,4.8202328,198.06,198.04,39.58]
[1756703213652,4.8202328,198.06,198.04,179.58]
[1756703214168,12.62038825,198.1,198.04,179.58]
[1756703214463,4.8202328,198.06,198.04,179.58]
[1756703215843,9.86921044,198.06,198.04,179.58]
[1756703216163,4.8202328,198.07,198.04,179.58]
[1756703217041,9.86919397,198.07,198.04,179.58]
[1756703217659,5.04896117,198.07,198.04,179.58]
[1756703217839,4.8202328,198.06,198.04,179.58]
[1756703218354,9.86925689,198.06,198.04,179.58]
[1756703218558,5.04902409,198.06,198.04,179.58]
[1756703218761,9.86925689,198.06,198.04,179.58]
[1756703219658,4.8202328,198.05,198.04,140.0]
[1756703219854,4.8202328,198.05,197.96,5.05129579]
[1756703219855,4.8202328,198.05,198.02,39.52]
[1756703220050,2.89591316,198.03,197.97,13.59559401]
[1756703220249,2.89591316,198.01,197.96,13.59559401]
[1756703220457,2.89591316,197.98,197.95,0.03]
[1756703220671,2.89591316,197.96,197.95,0.03]
[1756703221045,2.89591316,197.97,197.95,0.03]
[1756703222066,2.89591316,197.98,197.95,0.03]
[1756703222856,40.64853382,198.03,197.95,140.03]
[1756703223054,2.89591316,197.98,197.95,140.03]
[1756703224050,2.89591316,197.97,197.95,140.03]
[1756703224455,2.89591316,197.98,197.95,140.03]
[1756703224767,2.89591316,198.03,197.98,0.14216157]
[1756703224947,5.04948495,198.04,197.98,42.55807473]
[1756703224948,7.94539811,198.04,197.98,42.55807473]
[1756703226364,2.89591316,198.05,198.0,0.14216157]
[1756703226557,2.89591316,198.05,198.0,39.68216157]
[1756703226754,2.89591316,198.04,198.0,39.68216157]
[1756703227267,5.04872014,198.07,198.0,42.57807473]
[1756703227452,2.89591316,198.05,198.01,13.59559401]
[1756703228163,2.89591316,198.08,198.03,16.49150717]
[1756703228364,2.89591316,198.06,198.03,13.59559401]
[1756703228669,2.89591316,198.07,198.03,13.59559401]
[1756703228860,2.89591316,198.08,198.03,16.49150717]
[1756703229455,2.89591316,198.08,198.03,156.49150717]
[1756703229668,2.89591316,198.08,198.04,0.14216157]
[1756703229978,2.89591316,198.08,198.04,39.68216157]
[1756703231178,5.10744599,198.12,198.04,39.68216157]
[1756703231358,2.89591316,198.08,198.04,39.68216157]
[1756703231553,2.89591316,198.06,198.03,153.59559401]
[1756703231882,2.89591316,198.04,198.0,39.52]
[1756703232052,2.89591316,198.02,198.0,39.52]
[1756703232466,2.89591316,198.01,198.0,39.52]
[1756703233061,26.0,198.05,198.0,39.52]
[1756703233062,2.89591316,198.02,198.0,39.52]
[1756703233782,5.04948495,198.04,198.0,39.52]
[1756703234090,2.89591316,198.03,198.0,39.52]
[1756703234395,12.62104592,198.09,198.0,39.52]
[1756703234396,5.04872014,198.07,198.0,42.41591316]
[1756703234567,2.89591316,198.06,198.0,42.41591316]
[1756703234765,2.89591316,198.06,198.01,2.89591316]
[1756703235170,2.89591316,198.06,198.02,13.59559401]
[1756703235376,2.89591316,198.06,198.03,39.56]
[1756703236564,7.94490404,198.06,198.03,39.56]
[1756703236766,2.89591316,198.04,198.03,39.56]
[1756703236990,2.89591316,198.04,198.01,39.68216157]
[1756703237870,2.89591316,198.03,198.0,140.0]
[1756703238073,5.04970843,198.04,198.02,39.54]
[1756703238272,2.89591316,198.03,198.02,39.54]
[1756703239884,7.94565309,198.03,198.0,140.0]
[1756703240088,2.89591316,198.01,198.0,140.0]
[1756703240390,2.89591316,198.01,197.98,39.52]
[1756703240577,2.89591316,197.99,197.96,39.52]
[1756703240775,17.67408977,198.03,197.96,39.52]
[1756703240985,2.89591316,197.98,197.96,39.52]
[1756703241766,17.67408977,198.03,197.96,39.52]
[1756703242077,2.89591316,197.99,197.96,39.52]
[1756703243198,2.89591316,197.99,197.96,179.52]
[1756703243410,5.04999495,198.02,197.95,39.57]
[1756703243411,2.89591316,197.97,197.95,39.57]
[1756703243587,2.89591316,197.96,197.95,39.57]
[1756703243896,2.89591316,197.96,197.95,0.03]
[1756703244076,7.94743872,197.96,197.95,0.03]
[1756703245683,33.94743872,197.96,197.95,0.03]
[1756703246007,26.0,197.94,197.93,0.03]
[1756703246206,33.94794913,197.94,197.93,0.03]
[1756703247288,31.05203597,197.94,197.93,0.03]
[1756703247494,33.94794913,197.94,197.93,0.03]
[1756703247800,36.84386229,197.94,197.93,0.03]
[1756703248004,33.94794913,197.94,197.93,0.03]
[1756703248989,55.08242155,198.0,197.93,0.03]
[1756703249288,2.89591316,197.95,197.93,0.03]
[1756703251008,7.94772825,197.95,197.93,0.03]
[1756703251703,2.89591316,197.96,197.93,0.03]
[1756703251911,7.94739726,197.97,197.93,0.03]
[1756703252097,9.880789,197.97,197.93,0.03]
[1756703252295,4.8293049,197.96,197.93,0.03]
[1756703252808,4.8293049,197.94,197.93,0.03]
[1756703253609,4.8293049,197.94,197.93,140.03]
[1756703254085,5.05166781,197.96,197.93,140.03]
[1756703254290,4.8293049,197.95,197.93,140.03]
[1756703254897,5.05166781,197.96,197.93,140.03]
[1756703255105,4.8293049,197.95,197.93,140.03]
[1756703255518,4.8293049,197.94,197.93,140.03]
[1756703256815,4.8293049,197.94,197.93,0.03]
[1756703258788,4.8293049,197.95,197.93,0.03]
[1756703259710,4.8293049,197.95,197.93,140.03]
[1756703260020,9.88110456,197.95,197.93,140.03]
[1756703260232,4.8293049,197.95,197.93,140.03]
[1756703260722,4.8293049,197.94,197.93,140.03]
[1756703261695,4.8293049,197.94,197.93,0.03]
[1756703261934,9.88134087,197.94,197.93,0.03]
[1756703266914,30.8293049,197.94,197.93,0.03]
[1756703267925,35.88134087,197.94,197.93,0.03]
[1756703272037,33.95099445,197.94,197.93,0.03]
[1756703273333,70.49203597,197.94,197.93,0.03]
[1756703273533,73.39099445,197.94,197.93,0.03]
[1756703275348,31.05203597,197.94,197.93,0.03]
[1756703275511,33.95099445,197.94,197.93,0.03]
[1756703281156,36.84995293,197.94,197.91,0.03]
[1756703281444,5.79791696,197.92,197.91,0.03]
[1756703282128,45.21791696,197.92,197.91,0.03]
[1756703282957,39.42,197.92,197.91,0.03]
[1756703283139,42.29895848,197.92,197.91,0.03]
[1756703283454,45.19791696,197.92,197.91,0.03]
[1756703284031,28.89895848,197.92,197.91,0.03]
[1756703284231,68.29895848,197.92,197.91,0.03]
[1756703285140,73.35150496,197.92,197.91,0.03]
[1756703287855,76.25046344,197.92,197.91,0.03]
[1756703289159,76.25046344,197.92,197.89,0.03]
[1756703289334,28.89895848,197.9,197.89,0.03]
[1756703289540,68.25895848,197.9,197.89,0.03]
[1756703291964,73.31201557,197.9,197.89,0.03]
[1756703298049,20.0,197.88,197.85,0.03]
[1756703298255,2.89895848,197.86,197.85,0.03]
[1756703298461,42.29895848,197.86,197.85,0.03]
[1756703298663,26.0,197.83,197.78,0.03]
[1756703298948,28.89895848,197.79,197.78,0.03]
[1756703299146,68.33895848,197.79,197.78,0.03]
[1756703299360,72.49061734,197.79,197.78,0.03]
[1756703299545,68.33895848,197.79,197.78,0.03]
[1756703300270,80.36345712,197.79,197.76,0.03]
[1756703300468,31.79791696,197.76,197.75,0.2]
[1756703300672,71.33791696,197.76,197.75,0.2]
[1756703300970,31.79791696,197.76,197.75,0.2]
[1756703301162,71.33791696,197.76,197.75,0.2]
[1756703301359,28.89895848,197.76,197.75,0.2]
[1756703301554,68.43895848,197.76,197.75,0.2]
[1756703302147,42.45895848,197.76,197.75,0.2]
[1756703302476,45.35791696,197.76,197.75,1e-08]
[1756703302860,45.35791696,197.76,197.74,0.03]
[1756703302861,45.35791696,197.76,197.74,1e-08]
[1756703303060,2.89895848,197.75,197.74,1e-08]
[1756703303263,26.0,197.74,197.73,1e-08]
[1756703303462,68.51895848,197.74,197.73,1e-08]
[1756703303677,68.51895848,197.74,197.71,0.03]
[1756703303980,2.89895848,197.72,197.71,0.03]
[1756703304191,7.95712742,197.7,197.69,0.03]
[1756703304390,47.57712742,197.7,197.69,0.03]
[1756703304956,7.95712742,197.7,197.69,0.03]
[1756703305587,47.55712742,197.7,197.69,0.03]
[1756703306451,7.95712742,197.7,197.69,0.03]
[1756703306662,47.55712742,197.7,197.69,0.03]
[1756703309057,7.95712742,197.7,197.69,0.03]
[1756703309259,47.53712742,197.7,197.69,0.03]
[1756703312403,7.95712742,197.7,197.69,0.03]
[1756703312602,47.51712742,197.7,197.69,0.03]
[1756703312786,7.95712742,197.7,197.69,0.03]
[1756703313102,47.49712742,197.7,197.69,0.03]
[1756703313417,50.3960859,197.7,197.69,1e-08]
[1756703313607,50.3960859,197.7,197.62,140.0]
[1756703313608,26.0,197.67,197.53,39.56]
[1756703313914,26.0,197.63,197.53,13.59559401]
[1756703314111,68.47895848,197.63,197.58,2.89895848]
[1756703314284,2.89895848,197.62,197.57,2.89895848]
[1756703314716,2.89895848,197.61,197.56,2.89895848]
[1756703315205,2.89895848,197.62,197.57,2.89895848]
[1756703315412,7.95920147,197.62,197.57,2.89895848]
[1756703315620,2.89895848,197.62,197.57,2.89895848]
[1756703315916,2.89895848,197.62,197.55,5.0619778]
[1756703315917,28.89895848,197.63,197.56,0.14216157]
[1756703316112,2.89895848,197.62,197.57,2.89895848]
[1756703316591,2.89895848,197.62,197.57,142.89895848]
[1756703316780,39.56,197.66,197.58,16.63671406]
[1756703316981,2.89895848,197.65,197.6,2.89895848]
[1756703318494,7.9581515,197.66,197.61,2.89895848]
[1756703318690,2.89895848,197.64,197.58,13.73775558]
[1756703318893,2.89895848,197.63,197.58,16.63671406]
[1756703319101,2.89895848,197.64,197.59,2.89895848]
[1756703320013,2.89895848,197.63,197.58,2.89895848]
[1756703320400,5.06021657,197.62,197.57,140.0]
[1756703320808,2.89895848,197.61,197.57,140.0]
[1756703322196,7.95968722,197.6,197.57,140.0]
[1756703322791,2.89895848,197.59,197.57,140.0]
[1756703323387,2.89895848,197.58,197.57,140.0]
[1756703323594,2.89895848,197.58,197.53,2.89895848]
[1756703323595,2.89895848,197.58,197.54,13.59559401]
[1756703323805,2.89895848,197.58,197.41,212.66370087]
[1756703323806,28.89895848,197.55,197.41,212.66370087]
[1756703324014,28.89895848,197.55,197.45,2.89895848]
[1756703324015,2.89895848,197.5,197.45,2.89895848]
[1756703324220,2.89895848,197.5,197.46,13.59559401]
[1756703324221,7.96244962,197.5,197.46,13.59559401]
[1756703324528,5.06349114,197.5,197.46,13.59559401]
[1756703324731,5.06349114,197.5,197.46,16.49455249]
[1756703324930,7.96244962,197.5,197.43,13.59559401]
[1756703325325,2.89895848,197.49,197.44,2.89895848]
[1756703325501,2.89895848,197.49,197.45,13.59559401]
[1756703325828,5.06349114,197.5,197.45,16.49455249]
[1756703325829,7.96244962,197.5,197.45,16.49455249]
[1756703326203,7.96244962,197.5,197.45,0.14216157]
[1756703326506,7.96244962,197.5,197.47,13.59559401]
[1756703327122,2.89895848,197.52,197.47,2.89895848]
[1756703327516,2.89895848,197.52,197.46,13.59559401]
[1756703327517,2.89895848,197.51,197.46,2.89895848]
[1756703328613,7.96199807,197.51,197.46,2.89895848]
[1756703329016,2.89895848,197.52,197.48,13.59559401]
[1756703329327,2.89895848,197.5,197.46,13.59559401]
[1756703329733,2.89895848,197.51,197.46,16.49455249]
[1756703330123,2.89895848,197.51,197.46,156.49455249]
[1756703331031,26.0,197.55,197.48,13.59559401]
[1756703331208,26.0,197.55,197.48,2.89895848]
[1756703331209,2.89895848,197.53,197.48,2.89895848]
[1756703332027,2.89895848,197.51,197.47,13.59559401]
[1756703332230,2.89895848,197.5,197.47,13.59559401]
[1756703332532,7.96226511,197.5,197.47,13.59559401]
[1756703332924,2.89895848,197.49,197.46,140.03]
[1756703333130,2.89895848,197.47,197.46,140.03]
[1756703333638,2.89895848,197.48,197.46,140.03]
[1756703333816,2.89895848,197.47,197.46,140.03]
[1756703334218,2.89895848,197.47,197.46,0.03]
[1756703334522,7.96301884,197.47,197.46,0.03]
[1756703338519,39.62,197.51,197.46,0.03]
[1756703338834,2.89895848,197.47,197.46,0.03]
[1756703340550,7.96301884,197.47,197.46,0.03]
[1756703340929,7.96301884,197.47,197.46,1e-08]
[1756703341139,10.86197732,197.47,197.44,1e-08]
[1756703341322,31.79791696,197.45,197.44,1e-08]
[1756703342159,31.79791696,197.45,197.42,1e-08]
[1756703342330,2.89895848,197.43,197.42,1e-08]
[1756703342536,47.58404483,197.43,197.42,1e-08]
[1756703344151,47.58404483,197.43,197.41,174.41060082]
[1756703344454,7.9643014,197.42,197.41,174.41060082]
[1756703344634,5.06534292,197.42,197.41,174.41060082]
[1756703344841,7.9643014,197.42,197.41,174.41060082]
[1756703345355,47.5643014,197.42,197.41,174.41060082]
[1756703346351,47.5643014,197.42,197.41,147.77380652]
[1756703346851,47.5643014,197.42,197.41,122.40386384]
[1756703347032,47.5643014,197.42,197.41,62.13860757]
[1756703347329,26.0,197.39,197.29,2.89895848]
[1756703347535,2.89895848,197.34,197.29,2.89895848]
[1756703348152,68.51895848,197.35,197.28,39.62]
[1756703348452,5.06742511,197.34,197.3,2.89895848]
[1756703348827,5.06742511,197.34,197.28,39.62]
[1756703349048,2.89895848,197.33,197.28,13.59559401]
[1756703349242,5.06742511,197.34,197.3,2.89895848]
[1756703349427,44.68742511,197.34,197.3,2.89895848]
[1756703349934,44.68742511,197.34,197.3,142.89895848]
[1756703350134,44.68742511,197.34,197.3,140.0]
[1756703350348,44.68742511,197.34,197.3,142.89895848]
[1756703350550,39.6,197.34,197.3,140.0]
[1756703350978,42.49895848,197.34,197.3,140.0]
[1756703351175,26.0,197.35,197.3,140.0]
[1756703351442,26.0,197.34,197.3,142.89895848]
[1756703351849,26.0,197.34,197.3,140.0]
[1756703352048,2.89895848,197.33,197.3,140.0]
[1756703352435,5.06765316,197.33,197.3,140.0]
[1756703352942,5.06765316,197.33,197.29,2.92895848]
[1756703353141,28.89895848,197.34,197.29,2.92895848]
[1756703353443,31.06750839,197.34,197.3,13.59559401]
[1756703353644,33.96646687,197.34,197.29,2.92895848]
[1756703353840,31.06750839,197.34,197.3,2.89895848]
[1756703354159,2.89895848,197.32,197.29,0.03]
[1756703354460,7.96712532,197.31,197.29,0.03]
[1756703354874,5.06816684,197.31,197.29,0.03]
[1756703355557,7.96712532,197.31,197.29,0.03]
[1756703355760,2.89895848,197.3,197.29,0.03]
[1756703356382,33.9673822,197.3,197.29,0.03]
[1756703359972,33.9673822,197.3,197.29,1e-08]
[1756703362480,33.9673822,197.3,197.25,0.03]
[1756703362481,89.11739998,197.3,197.25,0.03]
[1756703362775,26.0,197.25,197.05,13.59559401]
[1756703362948,2.89895848,197.19,197.14,2.89895848]
[1756703363147,42.49895848,197.2,197.15,2.89895848]
[1756703363350,42.49895848,197.2,197.14,140.0]
[1756703363571,2.89895848,197.19,197.14,142.89895848]
[1756703363769,2.89895848,197.18,197.14,140.0]
[1756703364165,5.07125107,197.19,197.14,142.89895848]
[1756703364362,7.97020955,197.19,197.14,140.0]
[1756703364558,7.97020955,197.19,197.14,142.89895848]
[1756703365174,42.49895848,197.18,197.14,140.0]
[1756703365365,39.6,197.18,197.14,142.89895848]
[1756703365559,7.97020955,197.19,197.14,142.89895848]
[1756703365766,39.58,197.18,197.09,13.73775558]
[1756703365996,7.97020955,197.19,197.14,2.89895848]
[1756703366176,5.07158909,197.18,197.15,2.89895848]
[1756703366471,44.65158909,197.18,197.15,2.89895848]
[1756703366678,44.65158909,197.18,197.1,0.14216157]
[1756703366679,44.65158909,197.18,197.14,2.89895848]
[1756703366872,73.55054757,197.18,197.13,2.89895848]
[1756703367249,2.89895848,197.17,197.12,2.89895848]
[1756703367466,42.47895848,197.17,197.12,2.89895848]
[1756703367669,42.47895848,197.17,197.04,28.89895848]
[1756703367670,39.58,197.17,197.01,13.59559401]
[1756703367874,2.89895848,197.15,197.1,2.89895848]
[1756703368156,5.0727946,197.13,197.05,18.67030734]
[1756703368663,44.67258431,197.14,197.11,2.89895848]
[1756703368862,44.67258431,197.14,197.1,2.89895848]
[1756703369068,47.57154279,197.14,197.09,2.89895848]
[1756703369265,2.89895848,197.12,197.07,2.89895848]
[1756703369464,68.49895848,197.11,197.06,2.89895848]
[1756703369761,68.49895848,197.11,197.05,153.59559401]
[1756703369974,68.49895848,197.11,197.05,140.0]
[1756703370179,5.07433906,197.07,197.01,13.59559401]
[1756703370682,5.07433906,197.07,197.04,2.89895848]
[1756703370882,7.97329754,197.07,197.01,13.59559401]
[1756703371071,7.97329754,197.07,197.02,2.89895848]
[1756703371879,39.62,197.06,197.02,2.89895848]
[1756703372085,39.62,197.06,197.01,13.59559401]
[1756703372286,44.69485409,197.05,197.0,8.47568527]
[1756703372481,2.89895848,197.03,197.0,8.47568527]
[1756703372781,39.64,197.03,197.0,8.47568527]
[1756703372964,2.89895848,197.03,197.0,8.47568527]
[1756703373166,39.66,197.02,197.0,148.47568527]
[1756703373383,2.89895848,197.01,197.0,8.47568527]
[1756703373756,39.66,197.01,197.0,8.47568527]
[1756703373988,26.0,197.02,197.0,8.47568527]
[1756703374362,39.66,197.03,197.0,8.47568527]
[1756703374786,39.66,197.03,197.0,11.37464375]
[1756703375174,26.0,197.01,197.0,8.47568527]
[1756703375486,5.07433906,197.07,197.0,11.37464375]
[1756703375783,26.0,197.03,197.01,2.89895848]
[1756703375973,65.8,197.03,197.0,8.47568527]
[1756703376171,5.07562683,197.02,197.0,8.47568527]
[1756703376370,7.97458531,197.02,197.0,8.47568527]
[1756703376686,39.8,197.01,197.0,8.47568527]
[1756703377279,5.07562683,197.02,197.0,8.47568527]
[1756703377474,39.78,197.02,197.0,11.37464375]
[1756703377677,26.0,197.04,197.0,11.37464375]
[1756703377879,39.8,197.03,197.0,11.37464375]
[1756703378077,2.89895848,197.05,197.0,11.37464375]
[1756703378279,39.8,197.04,197.0,8.47568527]
[1756703378588,39.8,197.04,197.02,2.89895848]
[1756703378887,5.07382414,197.09,197.03,2.89895848]
[1756703379065,5.07382414,197.09,197.06,2.89895848]
[1756703379266,39.8,197.08,197.05,2.89895848]
[1756703379482,39.8,197.08,197.01,13.59559401]
[1756703379688,39.82,197.08,197.05,2.89895848]
[1756703379884,5.07382414,197.09,197.06,2.89895848]
[1756703380076,26.0,197.1,197.01,13.59559401]
[1756703380274,26.0,197.09,197.06,2.89895848]
[1756703380588,65.8,197.09,197.06,2.89895848]
[1756703380782,65.8,197.09,197.01,13.59559401]
[1756703380783,2.89895848,197.07,197.01,16.49455249]
[1756703381001,65.8,197.09,197.01,16.49455249]
[1756703381002,42.71895848,197.06,197.01,13.59559401]
[1756703381300,65.82,197.06,197.0,8.47568527]
[1756703381590,68.71895848,197.06,197.01,2.89895848]
[1756703381796,28.89895848,197.03,197.0,8.47568527]
[1756703381965,2.89895848,197.01,197.0,8.47568527]
[1756703382365,7.97484295,197.01,197.0,8.47568527]
[1756703382786,47.85484295,197.01,197.0,1e-08]
[1756703385396,50.50373704,197.01,197.0,1e-08]
[1756703385597,10.62373704,197.01,197.0,1e-08]
[1756703385910,50.50373704,197.01,197.0,1e-08]
[1756703387105,50.64589861,197.01,197.0,1e-08]
[1756703387290,2.64889409,197.01,197.0,1e-08]
[1756703387487,44.99516417,197.04,197.0,2.89895849]
[1756703387687,44.99516417,197.04,197.0,0.03000001]
[1756703387688,26.0,197.01,197.0,0.03000001]
[1756703387895,5.54740548,197.03,197.0,0.03000001]
[1756703388404,5.07562683,197.02,197.0,0.03000001]
[1756703388595,45.01562683,197.02,197.0,0.03000001]
[1756703388791,2.89895848,197.01,197.0,0.03000001]
[1756703389187,71.01562683,197.02,197.0,0.03000001]
[1756703389412,73.91458531,197.02,197.0,0.03000001]
[1756703389919,39.96,197.01,197.0,0.03000001]
[1756703390088,2.89895848,197.08,197.0,142.92895849]
[1756703390287,39.98,197.07,197.01,13.59559401]
[1756703390612,33.97355504,197.06,197.01,16.49455249]
[1756703390791,31.07459656,197.06,197.01,13.59559401]
[1756703390999,28.89895848,197.03,197.0,140.03000001]
[1756703391179,28.89895848,197.03,197.0,0.03000001]
[1756703391180,2.89895848,197.02,197.0,0.03000001]
[1756703391378,66.0,197.03,197.0,0.03000001]
[1756703391584,2.89895848,197.02,197.0,0.03000001]
[1756703391813,68.89895848,197.03,197.0,0.03000001]
[1756703392386,66.0,197.03,197.0,0.03000001]
[1756703392694,73.97435547,197.03,197.0,0.03000001]
[1756703392888,71.07539699,197.03,197.0,0.03000001]
[1756703393081,39.98,197.02,197.0,0.03000001]
[1756703393284,31.07539699,197.03,197.0,0.03000001]
[1756703393485,39.98,197.02,197.0,0.03000001]
[1756703394108,31.07539699,197.03,197.0,0.03000001]
[1756703394301,39.98,197.02,197.0,0.03000001]
[1756703394911,5.07588447,197.01,197.0,0.03000001]
[1756703396494,5.07492179,197.05,197.0,2.92895849]
[1756703396805,65.94,197.04,197.0,2.92895849]
[1756703396993,2.89895848,197.08,197.03,2.89895848]
[1756703397194,36.56,197.15,197.03,2.89895848]
[1756703397195,39.96,197.07,197.03,2.89895848]
[1756703397401,5.07403198,197.09,197.01,18.67147653]
[1756703397606,26.0,197.06,197.01,18.67147653]
[1756703397801,26.0,197.06,197.04,2.89895848]
[1756703398006,39.96,197.08,197.04,2.89895848]
[1756703398204,7.97287189,197.09,197.04,2.89895848]
[1756703398414,2.64811037,197.1,197.01,30.70230776]
[1756703398715,39.96,197.13,197.09,2.89895848]
[1756703399016,71.03292083,197.13,197.06,5.07455484]
[1756703399212,26.0,197.13,197.08,2.89895848]
[1756703399413,31.07286638,197.13,197.08,2.89895848]
[1756703399716,60.45373127,197.14,197.09,2.89895848]
[1756703399917,68.42523535,197.14,197.02,5.07562683]
[1756703400219,20.49373127,197.14,197.1,2.89895848]
[1756703400419,20.49373127,197.14,197.04,2.89895848]
[1756703400420,20.49373127,197.14,197.11,2.89895848]
[1756703400597,25.56630825,197.14,197.05,0.14216157]
[1756703400801,2.89895848,197.13,197.08,2.89895848]
[1756703400991,60.47373127,197.14,197.11,2.89895848]
[1756703401326,20.49373127,197.14,197.12,2.89895848]
[1756703401823,20.49373127,197.14,197.11,16.49455249]
[1756703402118,2.89895848,197.13,197.1,140.0]
[1756703402619,25.56633,197.14,197.1,140.0]
[1756703402620,20.49373127,197.14,197.12,2.89895848]
[1756703402826,2.64760968,197.18,197.13,16.49455249]
[1756703403031,2.64760968,197.18,197.16,2.89895848]
[1756703403322,2.89895848,197.22,197.17,2.89895848]
[1756703403549,18.14324848,197.24,197.19,2.89895848]
[1756703403704,26.0,197.21,197.16,13.59559401]
[1756703403909,2.89895848,197.23,197.18,2.89895848]
[1756703404096,47.73704107,197.24,197.19,2.89895848]
[1756703404297,26.0,197.21,197.18,2.89895848]
[1756703404531,47.75704107,197.24,197.16,13.59559401]
[1756703404710,2.89895848,197.19,197.14,2.89895848]
[1756703404909,2.89895848,197.16,197.1,13.59559401]
[1756703405221,5.07227998,197.15,197.1,13.59559401]
[1756703405622,2.89895848,197.14,197.09,2.89895848]
[1756703405795,7.97123846,197.15,197.1,2.89895848]
[1756703405997,9.45535232,197.15,197.1,4.38307234]
[1756703406197,5.07227998,197.15,197.1,4.38307234]
[1756703406427,26.0,197.13,197.06,0.14216157]
[1756703406598,26.0,197.13,197.11,13.59559401]
[1756703406799,4.38307234,197.12,197.1,140.0]
[1756703407101,9.45642505,197.11,197.06,4.38307234]
[1756703407320,5.07335271,197.11,197.06,4.38307234]
[1756703407524,5.07335271,197.11,197.07,4.38307234]
[1756703407726,5.07335271,197.11,197.04,0.14216157]
[1756703408104,5.07335271,197.11,197.07,4.38307234]
[1756703408303,4.38307234,197.11,197.06,4.38307234]
[1756703408611,4.38307234,197.11,197.07,13.59559401]
[1756703408830,4.38307234,197.1,197.06,13.59559401]
[1756703409208,5.07305194,197.12,196.99,40.04]
[1756703409209,4.38307234,197.08,196.99,40.04]
[1756703409522,4.38307234,197.07,196.98,5.07661047]
[1756703409710,26.0,197.05,197.02,13.59559401]
[1756703409936,4.38307234,197.03,196.93,13.595594]
[1756703410233,9.45822014,197.04,196.99,4.38307234]
[1756703410431,26.0,197.05,197.02,17.97866635]
[1756703411065,26.0,197.05,196.97,0.14216157]
[1756703411066,26.0,197.05,196.98,13.73775558]
[1756703411348,26.0,197.05,197.02,4.38307234]
[1756703411649,26.0,197.05,197.0,4.41307235]
[1756703411650,30.38307234,197.05,197.0,4.41307235]
[1756703412151,26.0,197.05,197.0,4.41307235]
[1756703412318,5.07511165,197.04,197.0,4.41307235]
[1756703413042,5.07511165,197.04,197.0,140.03000001]
[1756703413347,5.07511165,197.04,197.0,144.41307235]
[1756703413747,5.07511165,197.04,197.0,140.03000001]
[1756703413949,5.07511165,197.04,197.0,144.41307235]
[1756703414440,4.38307234,197.02,197.0,140.03000001]
[1756703414645,4.38307234,197.02,197.0,0.03000001]
[1756703414849,4.38307234,197.03,197.0,0.03000001]
[1756703415230,5.07511165,197.04,197.0,0.03000001]
[1756703415431,4.38307234,197.03,197.0,0.03000001]
[1756703415931,5.07562683,197.02,197.0,0.03000001]
[1756703416240,4.38307234,197.01,197.0,0.03000001]
[1756703416855,9.45869917,197.02,197.0,0.03000001]
[1756703418055,12.68818993,197.04,197.0,0.03000001]
[1756703418056,26.0,197.01,197.0,0.03000001]
[1756703419177,28.64845758,197.01,197.0,0.03000001]
[1756703419458,33.03152992,197.01,197.0,0.03000001]
[1756703419829,33.72434205,197.01,197.0,0.03000001]